[Event "*** Titled Tuesday Blitz"]
[Site "Chess.com"]
[Date "2020.05.19"]
[Round "9"]
[White "Vesper2018"]
[Black "poummba"]
[Result "0-1"]
[WhiteElo "2271"]
[BlackElo "2463"]
[TimeControl "180+1"]
[EndTime "13:47:52 PDT"]
[Termination "poummba won by resignation"]

1. e4 {[%clk 0:03:00.6]} 1... c5 {[%clk 0:02:59]} 2. Nc3 {[%clk 0:03:00.7]} 2...
g6 {[%clk 0:02:57.8]} 3. g3 {[%clk 0:02:57.7]} 3... Bg7 {[%clk 0:02:53.6]} 4.
Bg2 {[%clk 0:02:57.9]} 4... Nc6 {[%clk 0:02:54.5]} 5. d3 {[%clk 0:02:58.1]} 5...
d6 {[%clk 0:02:54.7]} 6. Be3 {[%clk 0:02:58.2]} 6... Nf6 {[%clk 0:02:55]} 7. h3
{[%clk 0:02:57.5]} 7... Rb8 {[%clk 0:02:54.4]} 8. Qd2 {[%clk 0:02:57.9]} 8... b5
{[%clk 0:02:54.1]} 9. Nge2 {[%clk 0:02:57.1]} 9... b4 {[%clk 0:02:54.3]} 10. Nd1
{[%clk 0:02:57.3]} 10... O-O {[%clk 0:02:53.7]} 11. O-O {[%clk 0:02:56.6]} 11...
a5 {[%clk 0:02:51.9]} 12. f4 {[%clk 0:02:55.4]} 12... Bb7 {[%clk 0:02:41.7]} 13.
g4 {[%clk 0:02:52.2]} 13... Ne8 {[%clk 0:02:31]} 14. f5 {[%clk 0:02:49.2]} 14...
Nd4 {[%clk 0:02:30.5]} 15. Ng3 {[%clk 0:02:41.3]} 15... d5 {[%clk 0:02:24.2]}
16. c3 {[%clk 0:02:32.8]} 16... bxc3 {[%clk 0:02:23.8]} 17. bxc3 {[%clk
0:02:32.7]} 17... dxe4 {[%clk 0:02:24.2]} 18. cxd4 {[%clk 0:02:22.5]} 18... cxd4
{[%clk 0:02:24.1]} 19. Bf4 {[%clk 0:02:21.9]} 19... e3 {[%clk 0:02:20.9]} 20.
Qe2 {[%clk 0:02:11.7]} 20... Nd6 {[%clk 0:02:15.2]} 21. Nb2 {[%clk 0:02:05.9]}
21... e5 {[%clk 0:01:52.5]} 22. fxe6 {[%clk 0:02:01.1]} 22... fxe6 {[%clk
0:01:53.4]} 23. Bxb7 {[%clk 0:01:48.8]} 23... Rxb7 {[%clk 0:01:52.7]} 24. Bxd6
{[%clk 0:01:46.2]} 24... Rxf1+ {[%clk 0:01:47.1]} 25. Rxf1 {[%clk 0:01:43.8]}
25... Qxd6 {[%clk 0:01:48]} 26. Ne4 {[%clk 0:01:42.8]} 26... Qb8 {[%clk
0:01:34.6]} 27. Nc4 {[%clk 0:01:39.2]} 27... Rb1 {[%clk 0:01:28]} 28. g5 {[%clk
0:01:34.2]} 28... a4 {[%clk 0:01:24.3]} 29. Kg2 {[%clk 0:01:29]} 29... Rxf1
{[%clk 0:01:19.5]} 30. Qxf1 {[%clk 0:01:28.3]} 30... h6 {[%clk 0:01:08.1]} 31.
Ncd6 {[%clk 0:01:26.3]} 31... Qb2+ {[%clk 0:00:26.6]} 32. Kg1 {[%clk 0:01:12.9]}
32... e2 {[%clk 0:00:17.6]} 33. Qe1 {[%clk 0:01:07.2]} 33... hxg5 {[%clk
0:00:09]} 34. Kf2 {[%clk 0:01:05.8]} 34... Qxa2 {[%clk 0:00:09.1]} 35. Qxe2
{[%clk 0:00:55.3]} 35... Qxe2+ {[%clk 0:00:08.5]} 36. Kxe2 {[%clk 0:00:55.4]}
36... a3 {[%clk 0:00:09.4]} 37. Nd2 {[%clk 0:00:55.1]} 37... a2 {[%clk
0:00:09.5]} 38. Nb3 {[%clk 0:00:55.2]} 38... Bf8 {[%clk 0:00:04.4]} 39. Nb5
{[%clk 0:00:54.7]} 39... e5 {[%clk 0:00:03.1]} 40. Kd2 {[%clk 0:00:51.9]} 40...
Bb4+ {[%clk 0:00:02.5]} 41. Kc2 {[%clk 0:00:51.5]} 41... Kf7 {[%clk 0:00:02.6]}
42. Kb2 {[%clk 0:00:42.9]} 42... Ke6 {[%clk 0:00:02.7]} 43. Nc1 {[%clk
0:00:24.8]} 43... Kf5 {[%clk 0:00:02.3]} 44. Ne2 {[%clk 0:00:24.9]} 44... g4
{[%clk 0:00:01.6]} 45. hxg4+ {[%clk 0:00:22.8]} 45... Kxg4 {[%clk 0:00:02.5]}
46. Kxa2 {[%clk 0:00:20.3]} 46... Kf3 {[%clk 0:00:02.9]} 47. Nc1 {[%clk
0:00:20.6]} 47... Ke3 {[%clk 0:00:02.8]} 48. Kb3 {[%clk 0:00:19.4]} 48... Bd2
{[%clk 0:00:03]} 49. Na2 {[%clk 0:00:18.7]} 49... Kxd3 {[%clk 0:00:02.9]} 50.
Nd6 {[%clk 0:00:18.3]} 50... e4 {[%clk 0:00:03]} 51. Kb2 {[%clk 0:00:13.3]}
51... e3 {[%clk 0:00:02.9]} 52. Nb7 {[%clk 0:00:09.1]} 52... e2 {[%clk 0:00:03]}
53. Nc5+ {[%clk 0:00:09.1]} 53... Ke3 {[%clk 0:00:03.5]} 54. Kb3 {[%clk
0:00:07.2]} 54... e1=Q {[%clk 0:00:03.8]} 55. Kc4 {[%clk 0:00:06.7]} 55... Qe2+
{[%clk 0:00:03.9]} 56. Kd5 {[%clk 0:00:07]} 56... d3 {[%clk 0:00:04.1]} 57. Kc6
{[%clk 0:00:05.5]} 57... Qg2+ {[%clk 0:00:04.6]} 58. Kb5 {[%clk 0:00:04.5]}
58... Be1 {[%clk 0:00:05.5]} 59. Nc1 {[%clk 0:00:03.6]} 59... d2 {[%clk
0:00:05.5]} 60. N1d3 {[%clk 0:00:03.1]} 60... d1=Q {[%clk 0:00:05.6]} 61. Kc4
{[%clk 0:00:03]} 61... Qdc2+ {[%clk 0:00:05.6]} 0-1

[Event "*** Titled Tuesday Blitz"]
[Site "Chess.com"]
[Date "2020.05.19"]
[Round "9"]
[White "zurzan"]
[Black "floplover"]
[Result "1/2-1/2"]
[WhiteElo "1957"]
[BlackElo "2295"]
[TimeControl "180+1"]
[EndTime "13:47:56 PDT"]
[Termination "Game drawn - timeout vs insufficient material"]

1. f4 {[%clk 0:03:00.9]} 1... g6 {[%clk 0:02:55.7]} 2. Nf3 {[%clk 0:03:00.7]}
2... Bg7 {[%clk 0:02:56]} 3. g3 {[%clk 0:03:01.6]} 3... d6 {[%clk 0:02:56.1]} 4.
Bg2 {[%clk 0:03:02.5]} 4... e5 {[%clk 0:02:52.5]} 5. O-O {[%clk 0:03:03.4]} 5...
Nc6 {[%clk 0:02:48.5]} 6. d3 {[%clk 0:03:04.3]} 6... Nge7 {[%clk 0:02:43.4]} 7.
c3 {[%clk 0:03:05.2]} 7... O-O {[%clk 0:02:41.7]} 8. e4 {[%clk 0:03:02.3]} 8...
d5 {[%clk 0:02:38]} 9. f5 {[%clk 0:02:59.5]} 9... dxe4 {[%clk 0:02:33.8]} 10.
dxe4 {[%clk 0:02:59.6]} 10... Qxd1 {[%clk 0:02:33.4]} 11. Rxd1 {[%clk
0:02:58.6]} 11... gxf5 {[%clk 0:02:34.3]} 12. exf5 {[%clk 0:02:47.7]} 12... Bxf5
{[%clk 0:02:35.2]} 13. Na3 {[%clk 0:02:28.2]} 13... Rad8 {[%clk 0:02:30.5]} 14.
Bg5 {[%clk 0:02:22.1]} 14... f6 {[%clk 0:02:29.2]} 15. Be3 {[%clk 0:02:21]}
15... Bg4 {[%clk 0:02:10.7]} 16. Rxd8 {[%clk 0:02:19.1]} 16... Rxd8 {[%clk
0:02:10.2]} 17. h3 {[%clk 0:02:19.4]} 17... Be6 {[%clk 0:02:06.7]} 18. Kf2
{[%clk 0:01:59.4]} 18... Nf5 {[%clk 0:01:58.1]} 19. Re1 {[%clk 0:01:44.7]} 19...
Nxe3 {[%clk 0:01:54.5]} 20. Rxe3 {[%clk 0:01:44.6]} 20... a6 {[%clk 0:01:54.1]}
21. Re2 {[%clk 0:01:39.6]} 21... Bxa2 {[%clk 0:01:50.9]} 22. Nd2 {[%clk
0:01:37.7]} 22... Be6 {[%clk 0:01:43]} 23. Bxc6 {[%clk 0:01:32.8]} 23... bxc6
{[%clk 0:01:42.5]} 24. g4 {[%clk 0:01:33.5]} 24... Bf8 {[%clk 0:01:36.3]} 25.
Nc2 {[%clk 0:01:31.5]} 25... Bc5+ {[%clk 0:01:35.7]} 26. Ke1 {[%clk 0:01:23.8]}
26... Rd3 {[%clk 0:01:25.2]} 27. Rh2 {[%clk 0:01:12.9]} 27... Kf7 {[%clk
0:01:15.9]} 28. Ke2 {[%clk 0:01:11.3]} 28... Rd8 {[%clk 0:01:10.9]} 29. Ne4
{[%clk 0:01:08.5]} 29... Be7 {[%clk 0:01:08]} 30. Ne3 {[%clk 0:01:04.9]} 30...
Rb8 {[%clk 0:01:02.2]} 31. b4 {[%clk 0:01:02.6]} 31... a5 {[%clk 0:01:00]} 32.
bxa5 {[%clk 0:01:01.6]} 32... Rb2+ {[%clk 0:00:57.5]} 33. Nd2 {[%clk 0:01:00.6]}
33... Ra2 {[%clk 0:00:51.4]} 34. Kd3 {[%clk 0:00:54.2]} 34... Rxa5 {[%clk
0:00:41.6]} 35. Ndc4 {[%clk 0:00:52.1]} 35... Rc5 {[%clk 0:00:37.3]} 36. Nd2
{[%clk 0:00:32.8]} 36... Rb5 {[%clk 0:00:33.4]} 37. Rh1 {[%clk 0:00:28]} 37...
Rb2 {[%clk 0:00:27.9]} 38. Ra1 {[%clk 0:00:26.7]} 38... h5 {[%clk 0:00:21.6]}
39. gxh5 {[%clk 0:00:25.2]} 39... Bxh3 {[%clk 0:00:21.5]} 40. Rh1 {[%clk
0:00:22.4]} 40... Be6 {[%clk 0:00:18.3]} 41. h6 {[%clk 0:00:21.8]} 41... Kg8
{[%clk 0:00:18.5]} 42. h7+ {[%clk 0:00:21.6]} 42... Kh8 {[%clk 0:00:18.3]} 43.
Ndc4 {[%clk 0:00:19]} 43... Rb8 {[%clk 0:00:15.2]} 44. Ke4 {[%clk 0:00:17.6]}
44... Rf8 {[%clk 0:00:12.3]} 45. Nxe5 {[%clk 0:00:17.6]} 45... fxe5 {[%clk
0:00:11.7]} 46. Kxe5 {[%clk 0:00:18.5]} 46... Bb3 {[%clk 0:00:10.3]} 47. c4
{[%clk 0:00:17.7]} 47... Rf7 {[%clk 0:00:09]} 48. Ke6 {[%clk 0:00:17.6]} 48...
Rg7 {[%clk 0:00:06.7]} 49. Nf5 {[%clk 0:00:15.9]} 49... Bxc4+ {[%clk 0:00:06.8]}
50. Ke5 {[%clk 0:00:15.1]} 50... Bd6+ {[%clk 0:00:07]} 51. Ke4 {[%clk 0:00:14]}
51... Rxh7 {[%clk 0:00:05.7]} 52. Nxd6 {[%clk 0:00:13.8]} 52... Rxh1 {[%clk
0:00:04.9]} 53. Nxc4 {[%clk 0:00:13.7]} 53... Kg7 {[%clk 0:00:04.4]} 54. Ne5
{[%clk 0:00:13]} 54... c5 {[%clk 0:00:03.8]} 55. Nd7 {[%clk 0:00:11.4]} 55... c4
{[%clk 0:00:03.1]} 56. Ne5 {[%clk 0:00:10.7]} 56... c3 {[%clk 0:00:02.8]} 57.
Kd3 {[%clk 0:00:10.5]} 57... Rh3+ {[%clk 0:00:01.9]} 58. Kc2 {[%clk 0:00:10.2]}
58... Kf6 {[%clk 0:00:02]} 59. Nc4 {[%clk 0:00:09.7]} 1/2-1/2

[Event "*** Titled Tuesday Blitz"]
[Site "Chess.com"]
[Date "2020.05.19"]
[Round "9"]
[White "ChronicUnhappiness"]
[Black "SanchezKelvin"]
[Result "0-1"]
[WhiteElo "2296"]
[BlackElo "2478"]
[TimeControl "180+1"]
[EndTime "13:48:00 PDT"]
[Termination "SanchezKelvin won by resignation"]

1. c4 {[%clk 0:03:00.9]} 1... Nf6 {[%clk 0:02:58.2]} 2. g3 {[%clk 0:02:51.8]}
2... g6 {[%clk 0:02:53.5]} 3. Bg2 {[%clk 0:02:51.7]} 3... Bg7 {[%clk 0:02:48.4]}
4. Nc3 {[%clk 0:02:51.7]} 4... O-O {[%clk 0:02:47.9]} 5. e4 {[%clk 0:02:51.7]}
5... d6 {[%clk 0:02:46.6]} 6. Nge2 {[%clk 0:02:51.9]} 6... c5 {[%clk 0:02:46]}
7. O-O {[%clk 0:02:51.8]} 7... Nc6 {[%clk 0:02:46]} 8. d3 {[%clk 0:02:51.8]}
8... a6 {[%clk 0:02:46]} 9. Bg5 {[%clk 0:02:49.6]} 9... Rb8 {[%clk 0:02:45.5]}
10. a4 {[%clk 0:02:45.5]} 10... h6 {[%clk 0:02:43.9]} 11. Be3 {[%clk 0:02:43.6]}
11... Ng4 {[%clk 0:02:43.1]} 12. Bd2 {[%clk 0:02:41.8]} 12... Nd4 {[%clk
0:02:39.6]} 13. Nxd4 {[%clk 0:02:40.6]} 13... cxd4 {[%clk 0:02:39.2]} 14. Ne2
{[%clk 0:02:35.2]} 14... b5 {[%clk 0:02:32.5]} 15. cxb5 {[%clk 0:02:29.7]} 15...
axb5 {[%clk 0:02:32]} 16. a5 {[%clk 0:02:30.3]} 16... e5 {[%clk 0:02:24.4]} 17.
h3 {[%clk 0:02:25.4]} 17... Nf6 {[%clk 0:02:23.2]} 18. f4 {[%clk 0:02:15]} 18...
Nd7 {[%clk 0:02:20.8]} 19. f5 {[%clk 0:02:12.8]} 19... Nc5 {[%clk 0:02:20.1]}
20. Qc2 {[%clk 0:02:04.6]} 20... b4 {[%clk 0:02:19.3]} 21. Nc1 {[%clk
0:01:43.9]} 21... Ba6 {[%clk 0:02:15.2]} 22. Rf3 {[%clk 0:01:42.9]} 22... Rb5
{[%clk 0:01:52.1]} 23. Nb3 {[%clk 0:01:34]} 23... Re8 {[%clk 0:01:51.5]} 24.
Nxc5 {[%clk 0:01:29.9]} 24... Rxc5 {[%clk 0:01:50.6]} 25. Qb3 {[%clk 0:01:29.2]}
25... gxf5 {[%clk 0:01:05.8]} 26. Rxf5 {[%clk 0:01:26]} 26... Re6 {[%clk
0:01:01.8]} 27. Raf1 {[%clk 0:01:21.2]} 27... Rc7 {[%clk 0:00:33]} 28. Rxf7
{[%clk 0:01:19.6]} 28... Rxf7 {[%clk 0:00:32.6]} 29. Qxe6 {[%clk 0:01:18]} 29...
Qe7 {[%clk 0:00:29.2]} 30. Qxf7+ {[%clk 0:01:08]} 30... Qxf7 {[%clk 0:00:28.8]}
31. Rxf7 {[%clk 0:01:08.7]} 31... Kxf7 {[%clk 0:00:29.7]} 32. Bxb4 {[%clk
0:00:59.5]} 32... Bxd3 {[%clk 0:00:26.9]} 33. Bxd6 {[%clk 0:00:57.8]} 33... Ke6
{[%clk 0:00:26.4]} 34. Bb4 {[%clk 0:00:57]} 34... Bf6 {[%clk 0:00:22.1]} 35. h4
{[%clk 0:00:55.2]} 35... h5 {[%clk 0:00:20.8]} 36. Kf2 {[%clk 0:00:51.1]} 36...
Bg7 {[%clk 0:00:18.8]} 37. Bh3+ {[%clk 0:00:41.2]} 37... Kf6 {[%clk 0:00:17.4]}
38. Bg2 {[%clk 0:00:42.1]} 38... Bh6 {[%clk 0:00:17.1]} 39. Bf1 {[%clk
0:00:37.1]} 39... Be3+ {[%clk 0:00:16]} 40. Kf3 {[%clk 0:00:35.3]} 40... Bxf1
{[%clk 0:00:15.5]} 41. Bc5 {[%clk 0:00:32.3]} 41... Bb5 {[%clk 0:00:11.4]} 42.
b4 {[%clk 0:00:31.7]} 42... Bd2 {[%clk 0:00:11.2]} 43. Kf2 {[%clk 0:00:28.3]}
43... Bc3 {[%clk 0:00:10.9]} 44. Kf3 {[%clk 0:00:26.8]} 44... d3 {[%clk
0:00:10.8]} 45. Be3 {[%clk 0:00:19]} 45... d2 {[%clk 0:00:11.7]} 46. Bxd2 {[%clk
0:00:18.5]} 46... Bxd2 {[%clk 0:00:12.6]} 47. a6 {[%clk 0:00:19.4]} 47... Bxb4
{[%clk 0:00:12]} 48. g4 {[%clk 0:00:20.3]} 48... hxg4+ {[%clk 0:00:11.2]} 49.
Kxg4 {[%clk 0:00:21.2]} 49... Bxa6 {[%clk 0:00:11.2]} 50. h5 {[%clk 0:00:20.6]}
50... Bc8+ {[%clk 0:00:11.1]} 51. Kh4 {[%clk 0:00:20.1]} 51... Bf8 {[%clk
0:00:11.7]} 52. Kg3 {[%clk 0:00:19.1]} 52... Bh6 {[%clk 0:00:12.6]} 53. Kh4
{[%clk 0:00:18.3]} 53... Bg5+ {[%clk 0:00:13.5]} 54. Kg3 {[%clk 0:00:18.6]}
54... Bf4+ {[%clk 0:00:13.5]} 55. Kf3 {[%clk 0:00:19.2]} 55... Kg5 {[%clk
0:00:13.3]} 56. h6 {[%clk 0:00:20.1]} 56... Kxh6 {[%clk 0:00:13.2]} 57. Ke2
{[%clk 0:00:20.2]} 57... Kg5 {[%clk 0:00:13.3]} 58. Kf3 {[%clk 0:00:21.1]} 58...
Bg4+ {[%clk 0:00:12.7]} 59. Kf2 {[%clk 0:00:20.7]} 59... Bc1 {[%clk 0:00:13.2]}
60. Ke1 {[%clk 0:00:20.5]} 60... Kf4 {[%clk 0:00:12.5]} 61. Kf1 {[%clk
0:00:21.4]} 61... Kf3 {[%clk 0:00:10.1]} 62. Ke1 {[%clk 0:00:22.3]} 62... Ke3
{[%clk 0:00:10.1]} 63. Kf1 {[%clk 0:00:23.2]} 63... Bf3 {[%clk 0:00:10]} 64. Ke1
{[%clk 0:00:24.1]} 64... Bd2+ {[%clk 0:00:09.5]} 65. Kf1 {[%clk 0:00:25]} 65...
Kf4 {[%clk 0:00:08.3]} 66. Kf2 {[%clk 0:00:24.7]} 66... Bc3 {[%clk 0:00:08.4]}
67. Kf1 {[%clk 0:00:25.6]} 67... Kg3 {[%clk 0:00:08.4]} 68. Kg1 {[%clk
0:00:25.1]} 68... Be2 {[%clk 0:00:07.8]} 69. Kh1 {[%clk 0:00:24.5]} 69... Bd2
{[%clk 0:00:08.1]} 70. Kg1 {[%clk 0:00:25.4]} 70... Be3+ {[%clk 0:00:08]} 0-1

[Event "*** Titled Tuesday Blitz"]
[Site "Chess.com"]
[Date "2020.05.19"]
[Round "9"]
[White "Doukis"]
[Black "Stormeman100100"]
[Result "1-0"]
[WhiteElo "2395"]
[BlackElo "2523"]
[TimeControl "180+1"]
[EndTime "13:48:01 PDT"]
[Termination "Doukis won by checkmate"]

1. d4 {[%clk 0:03:00.9]} 1... Nf6 {[%clk 0:02:57.2]} 2. c4 {[%clk 0:03:00.6]}
2... g6 {[%clk 0:02:55.6]} 3. f3 {[%clk 0:02:59.9]} 3... Bg7 {[%clk 0:02:51.3]}
4. e4 {[%clk 0:02:59.6]} 4... d6 {[%clk 0:02:51.9]} 5. Nc3 {[%clk 0:02:59.8]}
5... O-O {[%clk 0:02:52.4]} 6. Nge2 {[%clk 0:03:00.1]} 6... c5 {[%clk
0:02:52.7]} 7. d5 {[%clk 0:03:00.3]} 7... e6 {[%clk 0:02:52.2]} 8. Ng3 {[%clk
0:02:59.7]} 8... exd5 {[%clk 0:02:52.3]} 9. cxd5 {[%clk 0:03:00.6]} 9... a6
{[%clk 0:02:47.9]} 10. a4 {[%clk 0:03:00.1]} 10... Nh5 {[%clk 0:02:46.9]} 11.
Nxh5 {[%clk 0:02:55.1]} 11... gxh5 {[%clk 0:02:47.8]} 12. Be3 {[%clk 0:02:47.1]}
12... Nd7 {[%clk 0:02:46.4]} 13. Qd2 {[%clk 0:02:41.7]} 13... Ne5 {[%clk
0:02:44.4]} 14. Be2 {[%clk 0:02:39.6]} 14... f5 {[%clk 0:02:44.4]} 15. exf5
{[%clk 0:02:39]} 15... Bxf5 {[%clk 0:02:43]} 16. O-O {[%clk 0:02:32.4]} 16... h4
{[%clk 0:02:39.5]} 17. Rae1 {[%clk 0:02:31]} 17... h3 {[%clk 0:02:38.1]} 18. g4
{[%clk 0:02:27]} 18... Bd7 {[%clk 0:02:35.3]} 19. Ne4 {[%clk 0:02:17]} 19...
Bxa4 {[%clk 0:02:35.2]} 20. f4 {[%clk 0:02:12.6]} 20... Nf7 {[%clk 0:02:24.3]}
21. f5 {[%clk 0:02:09.3]} 21... Be5 {[%clk 0:02:22.1]} 22. g5 {[%clk 0:01:57.8]}
22... Qe7 {[%clk 0:01:55.8]} 23. f6 {[%clk 0:01:40.2]} 23... Bxh2+ {[%clk
0:01:53.3]} 24. Kxh2 {[%clk 0:01:37.9]} 24... Qxe4 {[%clk 0:01:53.2]} 25. Bf3
{[%clk 0:01:29.3]} 25... Qe5+ {[%clk 0:01:48.7]} 26. Bf4 {[%clk 0:01:29.2]}
26... Qd4 {[%clk 0:01:38.3]} 27. Qxd4 {[%clk 0:01:05.4]} 27... cxd4 {[%clk
0:01:39.2]} 28. Re7 {[%clk 0:01:05.8]} 28... d3 {[%clk 0:01:28.4]} 29. Be4
{[%clk 0:01:05.9]} 29... Bb5 {[%clk 0:01:21.8]} 30. g6 {[%clk 0:00:57.5]} 30...
hxg6 {[%clk 0:01:18.1]} 31. Rg1 {[%clk 0:00:57.4]} 31... Kh8 {[%clk 0:01:07.4]}
32. Rxg6 {[%clk 0:00:54.4]} 32... Rae8 {[%clk 0:00:49.3]} 33. Bxd6 {[%clk
0:00:34.9]} 33... Rxe7 {[%clk 0:00:35.1]} 34. fxe7 {[%clk 0:00:30.3]} 34... Rg8
{[%clk 0:00:24.1]} 35. Bf4 {[%clk 0:00:21.3]} 35... Rxg6 {[%clk 0:00:22]} 36.
Bxg6 {[%clk 0:00:22.2]} 36... Kg7 {[%clk 0:00:21.5]} 37. Bxd3 {[%clk 0:00:19.7]}
37... Bd7 {[%clk 0:00:21.3]} 38. Bf5 {[%clk 0:00:18.9]} 38... Be8 {[%clk
0:00:18.6]} 39. d6 {[%clk 0:00:18.2]} 39... Kf6 {[%clk 0:00:18.6]} 40. Bxh3
{[%clk 0:00:17.9]} 40... Bc6 {[%clk 0:00:15.9]} 41. Bg4 {[%clk 0:00:14.2]} 41...
a5 {[%clk 0:00:13.9]} 42. Kg3 {[%clk 0:00:14.1]} 42... b5 {[%clk 0:00:14]} 43.
Kf2 {[%clk 0:00:14.2]} 43... b4 {[%clk 0:00:12.5]} 44. Ke1 {[%clk 0:00:13.9]}
44... a4 {[%clk 0:00:12.7]} 45. Kd2 {[%clk 0:00:14.2]} 45... a3 {[%clk
0:00:11.4]} 46. bxa3 {[%clk 0:00:15.1]} 46... bxa3 {[%clk 0:00:12.3]} 47. Kc1
{[%clk 0:00:15.5]} 47... Ba4 {[%clk 0:00:06.2]} 48. Kb1 {[%clk 0:00:15.4]} 48...
Bc6 {[%clk 0:00:03.6]} 49. Ka2 {[%clk 0:00:14.9]} 49... Nh8 {[%clk 0:00:03.6]}
50. d7 {[%clk 0:00:10.7]} 50... Bxd7 {[%clk 0:00:01.5]} 51. Bxd7 {[%clk
0:00:09.7]} 51... Kxe7 {[%clk 0:00:02.4]} 52. Bf5 {[%clk 0:00:07.7]} 52... Ng6
{[%clk 0:00:03.3]} 53. Bxg6 {[%clk 0:00:07.2]} 53... Kf6 {[%clk 0:00:03.8]} 54.
Be4 {[%clk 0:00:08.1]} 54... Ke6 {[%clk 0:00:03]} 55. Kxa3 {[%clk 0:00:09]}
55... Kf6 {[%clk 0:00:03.1]} 56. Kb4 {[%clk 0:00:09.9]} 56... Ke6 {[%clk
0:00:04]} 57. Kc4 {[%clk 0:00:10.8]} 57... Kf6 {[%clk 0:00:04.8]} 58. Kc5 {[%clk
0:00:11.7]} 58... Ke6 {[%clk 0:00:05.7]} 59. Kd4 {[%clk 0:00:11.3]} 59... Kf6
{[%clk 0:00:06.6]} 60. Be5+ {[%clk 0:00:11.4]} 60... Ke6 {[%clk 0:00:07.5]} 61.
Bd5+ {[%clk 0:00:11.1]} 61... Ke7 {[%clk 0:00:08.4]} 62. Kc5 {[%clk 0:00:11.2]}
62... Kd7 {[%clk 0:00:09.3]} 63. Bd6 {[%clk 0:00:10.9]} 63... Kd8 {[%clk
0:00:09.4]} 64. Be6 {[%clk 0:00:11.2]} 64... Ke8 {[%clk 0:00:09.5]} 65. Kc6
{[%clk 0:00:10.7]} 65... Kd8 {[%clk 0:00:10.4]} 66. Bf7 {[%clk 0:00:10.5]} 66...
Kc8 {[%clk 0:00:10.5]} 67. Be7 {[%clk 0:00:09.6]} 67... Kb8 {[%clk 0:00:10.7]}
68. Kb6 {[%clk 0:00:10.1]} 68... Kc8 {[%clk 0:00:11]} 69. Be6+ {[%clk
0:00:10.7]} 69... Kb8 {[%clk 0:00:11.6]} 70. Bd6+ {[%clk 0:00:11.3]} 70... Ka8
{[%clk 0:00:12.5]} 71. Bd5# {[%clk 0:00:11.9]} 1-0

[Event "*** Titled Tuesday Blitz"]
[Site "Chess.com"]
[Date "2020.05.19"]
[Round "9"]
[White "Sesleria"]
[Black "Gandrade2"]
[Result "1/2-1/2"]
[WhiteElo "1927"]
[BlackElo "2025"]
[TimeControl "180+1"]
[EndTime "13:48:04 PDT"]
[Termination "Game drawn by repetition"]

1. d4 {[%clk 0:02:59.8]} 1... d5 {[%clk 0:02:59.8]} 2. c4 {[%clk 0:03:00]} 2...
e6 {[%clk 0:03:00.1]} 3. Nc3 {[%clk 0:03:00.3]} 3... a6 {[%clk 0:03:00.1]} 4. e4
{[%clk 0:02:50.9]} 4... dxe4 {[%clk 0:02:58]} 5. Nxe4 {[%clk 0:02:51]} 5... Bb4+
{[%clk 0:02:58.4]} 6. Bd2 {[%clk 0:02:46.4]} 6... Qxd4 {[%clk 0:02:56.8]} 7.
Bxb4 {[%clk 0:02:46.3]} 7... Qxe4+ {[%clk 0:02:57.1]} 8. Be2 {[%clk 0:02:46.7]}
8... Qxg2 {[%clk 0:02:46.7]} 9. Bf3 {[%clk 0:02:46.6]} 9... Qg6 {[%clk
0:02:47.1]} 10. Qd2 {[%clk 0:02:24.1]} 10... Qh6 {[%clk 0:02:34.8]} 11. Qc2
{[%clk 0:02:01.9]} 11... Ne7 {[%clk 0:02:23.6]} 12. Bd2 {[%clk 0:01:57.1]} 12...
Qg6 {[%clk 0:02:23.2]} 13. Be4 {[%clk 0:01:56.3]} 13... Qf6 {[%clk 0:02:13.9]}
14. Bc3 {[%clk 0:01:54.2]} 14... e5 {[%clk 0:02:07.9]} 15. Nf3 {[%clk
0:01:51.7]} 15... Nbc6 {[%clk 0:02:07.6]} 16. O-O-O {[%clk 0:01:24.1]} 16... Bf5
{[%clk 0:01:47.2]} 17. Rhe1 {[%clk 0:01:15.9]} 17... O-O {[%clk 0:01:35.6]} 18.
Bxf5 {[%clk 0:01:08.5]} 18... Qxf5 {[%clk 0:01:15.2]} 19. Nxe5 {[%clk
0:01:03.3]} 19... Nxe5 {[%clk 0:01:07.8]} 20. Qxf5 {[%clk 0:00:56.8]} 20... Nxf5
{[%clk 0:01:06.9]} 21. Rxe5 {[%clk 0:00:57.3]} 21... Nd6 {[%clk 0:01:04.3]} 22.
Re7 {[%clk 0:00:49.1]} 22... Rac8 {[%clk 0:00:52]} 23. Rg1 {[%clk 0:00:48.1]}
23... g6 {[%clk 0:00:48.5]} 24. b3 {[%clk 0:00:44.3]} 24... Rfe8 {[%clk
0:00:45.3]} 25. Rge1 {[%clk 0:00:42]} 25... Rxe7 {[%clk 0:00:43]} 26. Rxe7
{[%clk 0:00:41.8]} 26... Kf8 {[%clk 0:00:42.1]} 27. Bf6 {[%clk 0:00:33.1]} 27...
Nf5 {[%clk 0:00:33.4]} 28. Rd7 {[%clk 0:00:30.8]} 28... h5 {[%clk 0:00:25.6]}
29. Kc2 {[%clk 0:00:29.9]} 29... b6 {[%clk 0:00:21.8]} 30. Kc3 {[%clk
0:00:28.4]} 30... c5 {[%clk 0:00:22]} 31. Rb7 {[%clk 0:00:26.1]} 31... Nd6
{[%clk 0:00:03.2]} 32. Rxb6 {[%clk 0:00:24.6]} 32... Ne4+ {[%clk 0:00:04.1]} 33.
Kd3 {[%clk 0:00:24.1]} 33... Nxf2+ {[%clk 0:00:04.5]} 34. Kc3 {[%clk 0:00:23.9]}
34... Ng4 {[%clk 0:00:05.4]} 35. Bg5 {[%clk 0:00:22.5]} 35... Nxh2 {[%clk
0:00:05.3]} 36. Rxa6 {[%clk 0:00:22.8]} 36... Ng4 {[%clk 0:00:05.4]} 37. Rb6
{[%clk 0:00:20.8]} 37... f6 {[%clk 0:00:05.8]} 38. Bxf6 {[%clk 0:00:20.6]} 38...
Nxf6 {[%clk 0:00:05.4]} 39. Rxf6+ {[%clk 0:00:21.5]} 39... Kg7 {[%clk
0:00:06.3]} 40. Rd6 {[%clk 0:00:18.7]} 40... h4 {[%clk 0:00:06.1]} 41. a4 {[%clk
0:00:18.6]} 41... h3 {[%clk 0:00:04.5]} 42. Rd3 {[%clk 0:00:18.5]} 42... Rh8
{[%clk 0:00:02.9]} 43. Rd1 {[%clk 0:00:18.8]} 43... h2 {[%clk 0:00:03.2]} 44.
Rh1 {[%clk 0:00:19.7]} 44... g5 {[%clk 0:00:03.1]} 45. Kd3 {[%clk 0:00:18.1]}
45... g4 {[%clk 0:00:03.2]} 46. Ke3 {[%clk 0:00:17.8]} 46... Kg6 {[%clk
0:00:03.3]} 47. Kf2 {[%clk 0:00:18]} 47... Kg5 {[%clk 0:00:03.6]} 48. Kg2 {[%clk
0:00:17.9]} 48... Kf4 {[%clk 0:00:03.3]} 49. Rxh2 {[%clk 0:00:18.3]} 49... Rb8
{[%clk 0:00:03.3]} 50. Rh5 {[%clk 0:00:17.4]} 50... Rxb3 {[%clk 0:00:03.4]} 51.
Rxc5 {[%clk 0:00:17.6]} 51... Rb2+ {[%clk 0:00:04.2]} 52. Kf1 {[%clk 0:00:17.8]}
52... Kf3 {[%clk 0:00:03.1]} 53. Ke1 {[%clk 0:00:17.8]} 53... Rb1+ {[%clk
0:00:02.9]} 54. Kd2 {[%clk 0:00:17.9]} 54... Ra1 {[%clk 0:00:03]} 55. a5 {[%clk
0:00:15.5]} 55... g3 {[%clk 0:00:02.8]} 56. Rf5+ {[%clk 0:00:14.9]} 56... Kg2
{[%clk 0:00:03.2]} 57. Kd3 {[%clk 0:00:14.4]} 57... Kh2 {[%clk 0:00:03.3]} 58.
Kd4 {[%clk 0:00:14.6]} 58... g2 {[%clk 0:00:03.7]} 59. Rh5+ {[%clk 0:00:14.8]}
59... Kg3 {[%clk 0:00:03.6]} 60. Rg5+ {[%clk 0:00:15.3]} 60... Kf3 {[%clk
0:00:03.8]} 61. c5 {[%clk 0:00:13]} 61... Rxa5 {[%clk 0:00:03]} 62. Kd5 {[%clk
0:00:13.1]} 62... Rxc5+ {[%clk 0:00:02.5]} 63. Kxc5 {[%clk 0:00:13.4]} 63... Kf2
{[%clk 0:00:03.4]} 64. Rf5+ {[%clk 0:00:13.6]} 64... Ke1 {[%clk 0:00:02.6]} 65.
Rg5 {[%clk 0:00:13.6]} 65... Kf1 {[%clk 0:00:03.2]} 66. Rf5+ {[%clk 0:00:08.4]}
66... Ke2 {[%clk 0:00:03.5]} 67. Rg5 {[%clk 0:00:08.5]} 67... Kf1 {[%clk
0:00:04]} 68. Rf5+ {[%clk 0:00:08.6]} 68... Ke2 {[%clk 0:00:04.5]} 69. Rg5
{[%clk 0:00:08.7]} 69... Kf1 {[%clk 0:00:05]} 1/2-1/2